bitfinex/quotes_ETHUSD_20251015
["timestamp","ask_amount","ask_price","bid_price","bid_amount"]
[1760546152593,0.2051,3992.9,3991.0,15.74503094]
[1760546152795,0.2051,3992.9,3991.0,15.71997457]
[1760546153295,0.4377,3993.6,3991.3,4.86704935]
[1760546153595,0.4377,3993.6,3993.3,2.504149]
[1760546153898,0.001,3993.7,3993.3,2.50413307]
[1760546154056,0.001,3993.7,3992.3,2.50477082]
[1760546154057,0.001,3993.7,3993.6,2.50400641]
[1760546154256,0.001,3993.7,3993.6,2.52904647]
[1760546154765,0.001,3993.7,3993.6,2.50400641]
[1760546154992,0.001,3993.7,3992.6,0.4491]
[1760546155197,0.001,3993.7,3992.8,2.50448067]
[1760546155400,2.50495446,3993.7,3992.2,1.728]
[1760546155598,0.001,3993.7,3992.2,2.50487156]
[1760546155814,0.001,3993.7,3992.3,1.75304821]
[1760546155961,0.001,3993.7,3992.2,1.728]
[1760546155962,0.001,3993.7,3992.0,1.728]
[1760546156308,0.001,3993.7,3992.6,1.728]
[1760546156489,0.001,3993.7,3992.4,2.50473642]
[1760546156660,0.001,3993.7,3993.2,2.50422672]
[1760546156859,0.001,3993.7,3993.3,2.50414941]
[1760546157163,0.001,3993.7,3993.4,2.50406994]
[1760546157484,0.001,3993.7,3992.8,2.50450811]
[1760546157702,0.1248,3993.5,3993.4,2.50409307]
[1760546158204,0.1248,3993.5,3992.7,2.50455107]
[1760546158359,0.001,3993.7,3992.6,0.1248]
[1760546158560,0.1248,3993.2,3992.6,2.62943232]
[1760546158902,0.1248,3992.8,3992.7,2.50457084]
[1760546160681,0.1248,3992.8,3992.1,0.1248]
[1760546160862,0.1248,3992.8,3992.6,2.50461151]
[1760546161253,0.1248,3992.8,3991.2,0.2141]
[1760546161483,2.50455146,3992.8,3992.1,2.50494168]
[1760546161889,0.2258,3992.9,3992.3,2.50481002]
[1760546162106,0.1248,3992.3,3992.1,2.50494356]
[1760546162265,0.2258,3992.9,3991.5,1.75305323]
[1760546162598,0.2258,3992.9,3991.7,2.50515339]
[1760546162757,1.729,3993.7,3991.2,2.4095]
[1760546162758,0.001,3993.7,3991.3,0.6336]
[1760546162961,0.001,3993.7,3993.1,2.50425813]
[1760546163193,0.001,3993.7,3992.5,2.50465636]
[1760546163399,0.001,3993.7,3993.6,2.50400641]
[1760546163579,0.001,3993.7,3992.8,2.62929289]
[1760546163793,0.1248,3993.6,3992.8,2.62929289]
[1760546164111,0.1248,3993.6,3993.5,2.50406911]
[1760546164312,0.1248,3993.6,3992.8,0.1248]
[1760546164464,0.2258,3992.9,3991.6,0.4674]
[1760546164670,0.2258,3992.9,3991.6,1.728]
[1760546164869,0.1248,3992.1,3992.0,2.50501002]
[1760546165800,0.2258,3992.9,3992.0,2.50501002]
[1760546165801,0.2258,3992.9,3992.0,0.4652501]
[1760546166016,0.1248,3992.5,3991.8,0.1248]
[1760546166166,2.50474622,3992.5,3991.2,0.2141]
[1760546166366,0.1248,3991.8,3991.2,0.1248]
[1760546166566,0.2239,3991.9,3991.1,2.50555969]
[1760546166809,0.2239,3991.9,3991.1,2.5055749]
[1760546166810,0.1248,3991.2,3991.1,2.5055749]
[1760546167052,0.6336,3992.8,3991.1,0.657]
[1760546167184,2.50484186,3992.3,3991.5,2.50531918]
[1760546167513,0.1248,3991.7,3991.1,0.657]
[1760546167720,0.1248,3991.7,3991.6,2.50526104]
[1760546168067,0.1248,3992.0,3991.3,0.1248]
[1760546168436,0.1248,3992.0,3991.9,2.50507277]
[1760546168617,0.2258,3992.9,3992.7,2.50452823]
[1760546168800,0.2239,3993.3,3991.9,0.565]
[1760546168971,0.2239,3993.3,3992.0,0.4652501]
[1760546168972,0.1248,3992.7,3992.0,0.4652501]
[1760546169170,0.001,3993.6,3992.3,0.1248]
[1760546169367,0.1248,3992.9,3992.8,2.50450811]
[1760546169578,0.2239,3992.9,3991.4,2.1682]
[1760546169882,0.1248,3992.8,3992.7,2.50457084]
[1760546170288,0.1248,3992.8,3992.2,0.1248]
[1760546170605,0.1248,3992.5,3992.3,2.50479484]
[1760546170826,0.1248,3992.5,3992.4,2.50475904]
[1760546170980,0.2239,3992.9,3991.2,2.50549338]
[1760546170981,0.2239,3992.9,3991.2,2.94571212]
[1760546171169,0.2239,3992.9,3992.3,2.50477024]
[1760546171370,0.2239,3992.9,3991.7,0.46525198]
[1760546171572,0.2239,3992.9,3992.7,2.50456476]
[1760546171996,0.3357,3993.2,3992.8,2.50450811]
[1760546172208,2.50506351,3993.6,3993.0,2.50438266]
[1760546172209,0.2239,3993.1,3993.0,2.50438266]
[1760546172518,0.001,3993.6,3993.5,2.50406911]
[1760546172917,0.001,3993.6,3993.5,2.9693098]
[1760546173081,0.001,3993.6,3993.5,4.67226911]
[1760546173275,0.001,3993.6,3993.5,5.3309098]
[1760546173617,0.001,3993.6,3993.5,5.30586911]
[1760546174689,0.001,3995.0,3994.0,2.50375563]
[1760546174690,1e-08,3994.1,3994.0,2.50375563]
[1760546174891,1e-08,3994.1,3994.0,4.23175563]
[1760546175101,1e-08,3994.1,3994.0,4.69699318]
[1760546175643,1e-08,3994.1,3994.0,15.73423007]
[1760546175823,1e-08,3994.1,3994.0,15.70919252]
[1760546176190,0.001,3995.0,3994.4,3.1371049]
[1760546176413,0.001,3995.0,3994.4,4.8651049]
[1760546176725,0.001,3995.0,3994.4,12.6503239]
[1760546177150,0.001,3995.0,3994.4,32.8271609]
[1760546177296,0.001,3995.0,3994.4,19.1602009]
[1760546177641,1e-08,3995.4,3995.3,4.86454095]
[1760546178010,1e-08,3995.4,3995.3,5.30474095]
[1760546180127,1e-08,3995.4,3995.3,4.23094095]
[1760546180698,1e-08,3995.4,3994.3,0.657]
[1760546180699,0.22640001,3995.4,3994.3,0.657]
[1760546180897,0.22640001,3995.4,3994.3,0.2168]
[1760546180898,0.35120001,3995.4,3994.3,0.2168]
[1760546181112,0.12480001,3995.4,3995.3,2.50294095]
[1760546181402,0.22640001,3995.4,3993.3,13.34800638]
[1760546181597,0.22640001,3995.4,3994.1,2.50364622]
[1760546181814,1e-08,3995.4,3995.2,2.50294883]
[1760546182010,1e-08,3995.4,3995.3,2.50294095]
[1760546182421,0.22640001,3995.4,3994.3,0.6336]
[1760546182627,0.22640001,3995.4,3993.9,0.2168]
[1760546182628,2.72928869,3995.4,3993.9,0.2168]
[1760546182822,0.2264,3995.3,3994.6,2.50336307]
[1760546183048,2.50289307,3995.4,3993.6,0.4402]
[1760546183049,0.2228,3994.7,3993.6,0.4402]
[1760546183214,0.4514,3994.7,3993.6,2.50400641]
[1760546183410,0.2228,3995.0,3994.7,2.50331289]
[1760546183645,0.2228,3995.0,3993.7,0.4402]
[1760546183646,0.2228,3994.9,3994.8,2.50325423]
[1760546183852,2.50325423,3994.8,3993.0,0.657]
[1760546184164,2.50325423,3994.8,3994.0,2.50374734]
[1760546184165,0.2286,3994.7,3994.0,2.50374734]
[1760546184339,0.2286,3994.7,3994.1,2.50363634]
[1760546184522,0.2286,3994.7,3994.0,2.503747]
[1760546184728,0.2286,3994.6,3993.6,2.50400564]
[1760546184946,0.2286,3994.5,3993.8,2.50387936]
[1760546185251,0.2286,3994.5,3993.1,0.2168]
[1760546185252,0.2286,3994.5,3993.4,2.50408227]
[1760546185419,0.2228,3994.9,3992.8,0.657]
[1760546185420,0.2239,3993.9,3993.3,2.50419183]
[1760546185622,0.2286,3993.8,3993.3,2.50419183]
[1760546185843,0.2286,3993.7,3993.4,2.50410827]
[1760546186040,0.2286,3993.6,3992.5,0.4402]
[1760546186255,0.2286,3993.6,3991.9,0.4402]
[1760546186442,0.2286,3993.6,3992.9,2.50442491]
[1760546186636,2.7326172,3993.6,3992.8,2.50448477]
[1760546186952,0.2286,3993.6,3991.9,2.1682]
[1760546187128,2.73265453,3993.6,3992.9,2.50442813]
[1760546187328,2.73265453,3993.6,3992.6,2.50459257]
[1760546187329,2.50406959,3993.5,3992.8,2.50449026]
[1760546187546,2.73266959,3993.5,3992.8,2.50449026]
[1760546187853,0.2286,3993.4,3991.8,0.2168]
[1760546188053,2.50430088,3993.2,3992.3,2.50475907]
[1760546188263,2.50463357,3992.6,3991.4,0.002]
[1760546188551,0.2222,3991.5,3991.4,0.002]
[1760546189164,0.4529,3991.5,3991.4,0.002]
[1760546189661,0.2222,3991.5,3991.4,0.002]
[1760546189972,0.2222,3991.5,3991.4,2.50738658]
[1760546190639,0.4529,3991.5,3991.4,0.002]
[1760546191149,0.4529,3991.5,3991.4,2.50738658]
[1760546191467,0.4529,3991.5,3991.4,0.002]
[1760546191672,2.95822381,3991.5,3991.4,0.002]
[1760546191968,0.4529,3991.5,3991.4,0.002]
[1760546194549,0.2222,3991.5,3991.4,2.50738658]
[1760546194773,0.2223,3991.8,3991.5,2.50531779]
[1760546195138,0.2223,3991.8,3991.4,0.002]
[1760546195139,0.1248,3991.5,3991.4,0.002]
[1760546195340,0.1248,3991.5,3991.4,2.50738658]
[1760546196234,0.1248,3991.5,3991.4,0.002]
[1760546196675,0.3554,3991.5,3991.4,0.002]
[1760546196877,0.3554,3991.5,3991.4,2.50738658]
[1760546197252,0.1248,3991.5,3991.4,2.50738658]
[1760546197451,0.1248,3991.5,3991.4,0.002]
[1760546198094,0.3554,3991.5,3991.4,0.002]
[1760546199050,0.1248,3991.5,3991.4,2.50738658]
[1760546199576,0.4507,3992.8,3991.9,2.50502677]
[1760546199777,0.4507,3992.8,3991.4,0.4556]
[1760546199778,0.1248,3991.8,3991.4,0.4556]
[1760546199999,0.1248,3992.1,3992.0,2.50501002]
[1760546200350,0.1248,3992.1,3992.0,2.95861002]
[1760546200550,0.1248,3992.1,3992.0,2.50501002]
[1760546200782,0.1248,3992.1,3991.5,0.1248]
[1760546200982,0.2321,3992.5,3991.4,0.002]
[1760546201293,0.2321,3992.5,3992.0,2.50495146]
[1760546201491,0.2208,3992.9,3991.5,2.50532128]
[1760546201692,1.9488,3992.9,3992.1,2.50494727]
[1760546201858,0.2208,3992.9,3992.0,2.50500388]
[1760546202061,0.1248,3992.2,3992.1,2.50494727]
[1760546202495,0.1248,3992.2,3991.6,2.63005068]
[1760546202662,0.2208,3992.9,3991.4,0.002]
[1760546202862,0.1248,3992.0,3991.9,2.50507277]
[1760546203472,0.2208,3992.9,3992.4,2.50475483]
[1760546203673,0.1248,3992.3,3992.1,2.72173066]
[1760546203902,0.2222,3993.2,3992.2,0.4536]
[1760546204053,0.1248,3992.6,3992.5,2.5046413]
[1760546204374,0.1248,3992.6,3992.1,2.72170079]
[1760546204574,0.1248,3992.6,3992.4,2.50475254]
[1760546204971,0.1248,3992.6,3992.5,2.5046963]
[1760546205407,0.1248,3992.6,3992.2,2.50487535]
[1760546205710,0.1248,3992.3,3991.6,0.1248]
[1760546205881,0.2208,3992.9,3991.4,0.002]
[1760546205882,0.2321,3992.5,3991.4,0.002]
[1760546206089,0.1248,3991.5,3991.4,0.002]
[1760546206286,1.728,3992.4,3991.4,2.50738658]
[1760546206615,13.12892366,3992.9,3991.9,2.50507002]
[1760546206616,2.50457523,3992.7,3991.9,2.50507002]
[1760546206808,0.1248,3991.7,3991.5,2.50532381]
[1760546207119,0.2321,3992.8,3991.7,2.50519828]
[1760546207287,0.1248,3992.0,3991.9,2.50507277]
[1760546207474,0.1248,3992.0,3991.9,2.95867277]
[1760546207700,4.45450187,3993.2,3992.5,2.50465]
[1760546207870,4.45450187,3993.2,3992.1,0.2168]
[1760546207871,0.1248,3992.5,3992.1,0.2168]
[1760546208069,0.1248,3992.5,3991.2,2.577]
[1760546208070,2.50463896,3992.6,3991.6,2.50521019]
[1760546208272,0.1248,3992.0,3991.3,0.5784]
[1760546208583,0.1248,3992.0,3991.9,2.50502481]
[1760546208973,0.2208,3992.8,3992.5,2.50465478]
[1760546209187,0.1248,3992.4,3992.1,2.50490427]
[1760546209402,0.1248,3992.4,3992.2,2.50486568]
[1760546209602,0.1248,3992.4,3992.3,2.50482178]
[1760546209973,0.2222,3993.2,3992.5,2.50467039]
[1760546210471,0.2222,3993.2,3992.1,0.6704]
[1760546210472,0.2222,3993.2,3992.2,2.50488452]
[1760546210673,0.2222,3993.2,3992.1,2.72172399]
[1760546210873,0.2321,3993.1,3991.4,0.002]
[1760546211094,0.2321,3993.1,3991.7,2.50518823]
[1760546211307,0.2321,3993.1,3991.4,0.002]
[1760546211308,2.50476951,3992.4,3991.4,0.002]
[1760546211486,2.50476951,3992.4,3991.6,2.50520246]
[1760546211810,0.2208,3992.7,3991.4,2.50737507]
[1760546212013,0.2208,3992.7,3992.0,2.50495284]
[1760546212306,0.2208,3992.7,3991.6,0.4536]
[1760546212514,0.02244174,3994.2,3991.6,0.4536]
[1760546212515,1.9519,3993.9,3991.7,2.50519828]
[1760546212813,1.728,3993.0,3992.3,2.50477302]
[1760546213016,0.2321,3993.4,3992.5,2.50465005]
[1760546213186,0.2321,3993.4,3992.3,2.50481949]
[1760546213187,2.50421362,3993.3,3992.4,2.5047404]
[1760546213380,2.50373386,3994.1,3992.0,2.50495385]
[1760546213381,0.2321,3993.1,3992.0,2.50495385]
[1760546213578,0.2321,3993.1,3991.1,0.2254]
[1760546213579,2.50461501,3992.7,3991.1,0.2254]
[1760546213891,2.50438491,3993.0,3991.1,0.2254]
[1760546213892,0.6336,3992.8,3991.1,0.2254]
[1760546214090,2.50499601,3992.1,3991.4,2.50736507]
[1760546214320,0.2321,3992.3,3991.7,2.50519828]
[1760546214613,0.2208,3992.6,3991.4,0.002]
[1760546214915,2.50479126,3992.4,3992.1,0.002]
[1760546215478,2.50488452,3992.2,3992.1,0.002]
[1760546215672,0.2321,3992.3,3992.1,0.002]
[1760546215673,2.73694433,3992.3,3992.1,0.002]
[1760546216009,0.2321,3992.3,3992.1,0.002]
[1760546216216,2.5047418,3992.5,3992.1,0.002]
[1760546216423,0.2208,3992.6,3992.1,0.002]
[1760546216588,2.73698452,3992.2,3992.1,0.002]
[1760546217092,3.37058452,3992.2,3992.1,0.002]
[1760546219699,5.09858452,3992.2,3992.1,0.002]
[1760546221013,1.728,3992.2,3992.1,0.002]
[1760546221490,4.23288452,3992.2,3992.1,0.002]
[1760546221684,4.46498452,3992.2,3992.1,0.002]
[1760546223108,4.23288452,3992.2,3992.1,0.002]
[1760546223716,1.728,3992.2,3992.1,0.002]
[1760546224511,0.4406,3993.3,3992.1,0.2222]
[1760546224687,1.728,3992.8,3992.1,0.6688]
[1760546224884,0.4406,3993.3,3992.1,0.6688]
[1760546225095,1.728,3992.5,3992.1,0.002]
[1760546225388,2.5046375,3992.6,3992.1,0.2222]
[1760546225588,0.4528,3992.5,3992.1,0.002]
[1760546226011,0.2365,3992.4,3992.1,0.002]
[1760546226215,1.728,3992.9,3992.1,0.002]
[1760546226419,1.728,3992.6,3992.1,0.2222]
[1760546226627,2.72094928,3992.9,3992.2,2.50484401]
[1760546226781,1.728,3992.8,3992.3,2.50481099]
[1760546226982,1.728,3992.8,3992.1,0.2222]
[1760546226983,2.50451335,3992.8,3992.1,0.2222]
[1760546227200,1.728,3992.8,3992.2,2.50485159]
[1760546227534,2.50446063,3992.9,3992.1,0.2222]
[1760546227535,1.9447,3992.9,3992.1,0.2222]
[1760546227733,0.2167,3992.9,3992.1,0.2222]
[1760546228031,2.5047889,3992.4,3992.1,0.002]
[1760546228333,2.50460707,3992.7,3992.1,0.002]
[1760546228334,0.6336,3992.7,3992.1,0.002]
[1760546228531,2.50478662,3992.4,3992.1,0.002]
[1760546228736,2.3616,3992.6,3992.1,0.002]
[1760546228898,0.4529,3992.9,3992.1,0.002]
[1760546229107,1.728,3992.7,3992.1,0.002]
[1760546229443,0.6336,3992.8,3992.1,0.002]
[1760546229661,2.50481358,3992.4,3992.1,0.002]
[1760546229941,2.50486268,3992.3,3992.1,0.002]
[1760546230441,2.50482857,3992.3,3992.1,0.002]
[1760546230599,2.50474582,3992.5,3992.1,0.002]
[1760546230800,2.5045906,3992.7,3992.1,0.2222]
[1760546231027,2.50449112,3992.9,3992.2,2.50484562]
[1760546231232,1.728,3992.7,3992.2,2.50484562]
[1760546231543,0.1248,3992.2,3992.1,0.2222]
[1760546231726,0.1248,3992.2,3992.1,0.002]
[1760546232128,2.85168452,3992.2,3992.1,0.002]
[1760546232933,2.62968452,3992.2,3992.1,0.002]
[1760546233243,0.1248,3992.2,3992.1,0.002]
[1760546233538,5.21328452,3992.2,3992.1,0.002]
[1760546234298,2.0748,3992.2,3992.1,0.002]
[1760546234502,1.728,3992.2,3992.1,0.002]
[1760546235045,4.23288452,3992.2,3992.1,0.002]
[1760546235938,1.728,3992.2,3992.1,0.002]
[1760546236145,1.95,3992.2,3992.1,0.002]
[1760546236314,5.08848452,3992.2,3992.1,0.002]
[1760546237459,11.88383052,3991.8,3991.7,0.002]
[1760546237775,4.86673552,3991.8,3991.7,0.002]
[1760546237941,5.08873552,3991.8,3991.7,0.002]
[1760546238139,1.728,3991.8,3991.7,0.002]
[1760546238478,4.23313552,3991.8,3991.7,0.002]
[1760546239255,1.728,3991.8,3991.7,0.002]
[1760546239464,4.23313552,3991.8,3991.7,0.002]
[1760546239668,4.45513552,3991.8,3991.7,0.002]
[1760546239979,5.08873552,3991.8,3991.7,0.002]
[1760546240151,16.06652752,3991.8,3991.7,0.002]
[1760546240691,23.53723752,3991.8,3991.7,0.002]
[1760546240846,5.08873552,3991.8,3991.7,0.002]
[1760546242660,4.86673552,3991.8,3991.7,0.002]
[1760546243476,5.08873552,3991.8,3991.7,0.002]
[1760546243658,4.86673552,3991.8,3991.7,0.002]
[1760546243859,4.23313552,3991.8,3991.7,0.002]
[1760546244449,4.45513552,3991.8,3991.7,0.002]
[1760546244655,5.08873552,3991.8,3991.7,0.002]
[1760546245188,1.728,3991.8,3991.7,0.002]
[1760546245362,4.23313552,3991.8,3991.7,0.002]
[1760546245686,1.728,3991.8,3991.7,0.002]
[1760546246275,12.87059146,3992.9,3991.7,0.4348]
[1760546246590,1.728,3992.8,3991.7,0.4348]
[1760546246789,2.50469636,3992.5,3991.8,2.50513126]
[1760546246976,0.2308,3992.9,3991.7,0.4348]
[1760546247188,0.65444013,3994.4,3992.4,0.2202]
[1760546247379,0.1248,3993.0,3992.4,0.2202]
[1760546247593,0.1248,3993.0,3992.9,2.72121536]
[1760546247958,0.1248,3993.0,3992.9,0.6496]
[1760546248180,0.1248,3993.0,3992.9,0.2168]
[1760546248378,0.1248,3993.0,3992.0,0.2168]
[1760546248587,0.001,3992.1,3992.0,0.2168]
[1760546248787,0.001,3992.1,3992.0,2.72181002]
[1760546248987,0.001,3992.1,3992.0,2.84661002]
[1760546249292,0.001,3992.1,3992.0,3.15461002]
[1760546250704,0.001,3992.1,3992.0,4.88261002]
[1760546250990,0.001,3992.1,3992.0,5.51621002]
[1760546251585,0.001,3992.1,3992.0,4.88261002]
[1760546251986,0.001,3992.1,3992.0,3.15461002]
[1760546254294,0.001,3992.1,3992.0,2.72181002]
[1760546254503,0.001,3992.1,3992.0,2.50501002]
[1760546255002,0.001,3992.1,3991.7,0.002]
[1760546255301,0.001,3992.1,3991.8,0.4328]
[1760546255473,0.001,3992.1,3992.0,2.50501002]
[1760546255874,0.001,3992.1,3992.0,2.93311002]
[1760546257420,0.001,3992.1,3992.0,4.66111002]
[1760546257716,0.001,3992.1,3992.0,5.29471002]
[1760546258016,0.001,3992.1,3992.0,7.87071002]
[1760546258909,0.001,3992.1,3992.0,5.29471002]
[1760546259295,0.001,3992.1,3992.0,5.41951002]
[1760546259515,0.001,3992.1,3992.0,7.99551002]
[1760546259725,0.001,3992.1,3992.0,5.41951002]
[1760546259910,0.001,3992.1,3992.0,7.99551002]
[1760546260117,0.001,3992.1,3992.0,7.36191002]
[1760546260420,0.001,3992.1,3992.0,4.78591002]
[1760546261616,0.001,3992.1,3992.0,5.41951002]
[1760546261821,0.2181,3994.0,3992.0,5.41951002]
[1760546261822,1e-08,3992.9,3992.8,2.50450811]
[1760546262033,1e-08,3992.9,3992.8,4.23250811]
[1760546262291,1e-08,3992.9,3992.8,4.66060811]
[1760546262828,1e-08,3992.9,3992.8,4.23250811]
[1760546263407,1e-08,3992.9,3992.8,4.66060811]
[1760546264141,1e-08,3992.9,3992.8,4.23250811]
[1760546264641,0.21810001,3992.9,3992.8,2.50450811]
[1760546265002,1e-08,3992.9,3992.8,2.50450811]
[1760546265238,1e-08,3992.9,3992.8,2.93260811]
[1760546265420,1e-08,3992.9,3992.8,2.50450811]
[1760546266508,1e-08,3992.9,3992.8,2.93260811]
[1760546267361,1e-08,3992.9,3992.8,3.56620811]
[1760546267643,1e-08,3992.9,3992.8,7.99531858]
[1760546267850,1e-08,3992.9,3992.8,5.42031858]
[1760546268010,1e-08,3992.9,3992.8,15.24989858]
[1760546268337,1e-08,3992.9,3992.8,17.23759158]
[1760546268549,1e-08,3992.9,3992.8,19.81259158]
[1760546268848,1e-08,3992.9,3992.8,16.95102458]
[1760546269014,1e-08,3992.9,3992.0,0.002]
[1760546269212,1e-08,3992.9,3992.8,2.50450811]
[1760546269415,1e-08,3992.9,3992.8,6.80750811]
[1760546269647,1e-08,3992.9,3992.8,7.86920811]
[1760546270344,1e-08,3992.9,3992.8,5.29420811]
[1760546270545,1e-08,3992.9,3992.8,6.80750811]
[1760546270748,1e-08,3992.9,3992.8,4.23250811]
[1760546270950,1e-08,3992.9,3992.8,7.23560811]
[1760546271127,1e-08,3992.9,3992.8,7.86920811]
[1760546271316,1e-08,3992.9,3992.8,5.29420811]
[1760546271517,1e-08,3992.9,3992.8,7.86920811]
[1760546271850,1e-08,3992.9,3992.8,7.99400811]
[1760546272269,1e-08,3992.9,3992.8,5.41900811]
[1760546272454,1e-08,3992.9,3992.8,6.93230811]
[1760546272824,1e-08,3992.9,3992.8,4.35730811]
[1760546273148,1e-08,3992.9,3992.8,6.93230811]
[1760546273345,1e-08,3992.9,3992.8,4.35730811]
[1760546273552,1e-08,3992.9,3992.8,4.78540811]
[1760546273729,1e-08,3992.9,3992.8,7.36040811]
[1760546274126,1e-08,3992.9,3992.8,4.78540811]
[1760546274312,1e-08,3992.9,3992.8,7.36040811]
[1760546276918,1e-08,3992.9,3992.8,7.99400811]
[1760546277230,1e-08,3992.9,3992.8,17.01019911]
[1760546277535,1e-08,3992.9,3992.8,15.81187011]
[1760546277735,1e-08,3992.9,3992.8,7.99400811]
[1760546277954,1e-08,3992.9,3992.8,11.22000811]
[1760546278341,1e-08,3992.9,3992.8,8.64500811]
[1760546278647,1e-08,3992.9,3992.8,11.22000811]
[1760546278849,1e-08,3992.9,3992.8,11.28800811]
[1760546279052,1e-08,3992.9,3992.8,13.86300811]
[1760546279251,1e-08,3992.9,3992.8,8.06200811]
[1760546279546,1e-08,3992.9,3992.8,10.63700811]
[1760546279720,1e-08,3992.9,3992.8,8.06200811]
[1760546279917,1e-08,3992.9,3992.8,12.36306911]
[1760546280122,1e-08,3992.9,3992.8,14.93706911]
[1760546280355,1e-08,3992.9,3992.8,12.36306911]
[1760546280566,1e-08,3992.9,3992.8,32.27989611]
[1760546280715,0.001,3993.3,3993.2,21.7121743]
[1760546280918,0.001,3993.3,3993.2,21.8369743]
[1760546281158,0.001,3993.7,3993.6,3.13760641]
[1760546281315,0.001,3993.7,3993.6,25.11002541]
[1760546281659,1e-08,3995.4,3993.6,25.11002541]
[1760546281660,1e-08,3995.4,3995.3,2.50294095]
[1760546281830,1e-08,3995.4,3995.3,8.75783995]
[1760546282019,1e-08,3995.4,3995.3,11.85843995]
[1760546282344,1e-08,3995.4,3995.3,22.73580495]
[1760546282545,1e-08,3995.4,3995.3,21.31460195]
[1760546282762,0.001,3996.2,3995.7,24.06487439]
[1760546283055,0.001,3996.2,3995.7,15.25698446]
[1760546283368,0.001,3996.2,3995.7,15.71458446]
[1760546283654,0.001,3996.2,3995.7,18.28858446]
[1760546283854,0.001,3996.2,3995.7,20.89189146]
[1760546284030,0.001,3996.2,3995.7,15.71458446]
[1760546284235,0.001,3996.2,3995.7,4.86429039]
[1760546284550,0.001,3996.2,3995.7,4.23069039]
[1760546284551,0.2531,3995.8,3995.7,4.23069039]
[1760546284759,0.2531,3995.8,3994.8,0.222]
[1760546284760,0.2531,3995.8,3994.6,10.39269407]
[1760546284939,0.2531,3995.8,3995.7,2.50269039]
[1760546285130,0.2521,3995.7,3995.3,2.50289463]
[1760546285329,0.2521,3995.6,3995.4,2.50287242]
[1760546285530,0.2521,3995.6,3994.0,0.2202]
[1760546285531,0.2521,3995.5,3993.9,4.0]
[1760546285732,0.4704,3995.4,3995.1,2.50301285]
[1760546285957,0.4704,3995.4,3993.9,2.50380112]
[1760546285958,0.2539,3995.3,3995.2,2.5029699]
[1760546286459,0.2539,3995.3,3995.2,2.5030036]
[1760546287630,0.001,3995.8,3995.3,2.50294095]
[1760546287835,0.001,3995.8,3995.7,2.50269039]
[1760546288766,0.001,3995.8,3995.7,3.13629039]
[1760546288962,0.001,3995.8,3995.7,7.88719039]
[1760546289143,0.001,3995.8,3995.7,22.20158639]
[1760546289547,1e-08,3996.6,3996.5,3.13578941]
[1760546289879,1e-08,3996.6,3996.5,17.14257841]
[1760546290079,1e-08,3996.6,3996.5,17.59247841]
[1760546290367,1e-08,3996.6,3996.5,10.72989141]
[1760546290570,1e-08,3996.6,3996.5,7.42796141]
[1760546290778,1e-08,3996.6,3996.5,9.58481195]
[1760546291102,1e-08,3996.6,3996.5,4.86378941]
[1760546291668,1e-08,3996.6,3996.5,4.23018941]
[1760546292087,1e-08,3996.6,3996.5,6.80318941]
[1760546292296,0.25250001,3996.6,3994.9,2.50315431]
[1760546292470,0.25250001,3996.6,3994.7,10.84259407]
[1760546292471,0.2525,3996.5,3994.7,10.84259407]
[1760546292795,1e-08,3996.6,3996.5,2.62698941]
[1760546293358,1e-08,3996.6,3996.5,5.19998941]
[1760546293567,1e-08,3996.6,3996.5,6.92798941]
[1760546293762,1e-08,3996.6,3996.5,4.35498941]
[1760546294009,0.25250001,3996.6,3996.5,2.62698941]
[1760546294304,0.25250001,3996.6,3996.2,0.1248]
[1760546294463,1e-08,3996.6,3996.5,2.50218941]
[1760546294898,1e-08,3996.6,3996.2,0.1248]
[1760546295101,0.2525,3996.5,3996.3,2.50230126]
[1760546295257,0.2525,3996.4,3996.2,0.1248]
[1760546295463,0.2525,3996.3,3995.7,2.50265252]
[1760546295774,0.4488,3996.2,3995.6,2.50274894]
[1760546295980,1e-08,3996.6,3995.4,2.50282867]
[1760546295981,0.1248,3995.9,3995.4,2.50282867]
[1760546296179,0.2261,3995.5,3995.3,0.1248]
[1760546296566,0.2261,3995.5,3994.5,2.573]
[1760546296567,0.2442,3995.4,3994.5,2.573]
[1760546296899,0.1144,3994.6,3994.5,0.1248]
[1760546297105,0.1248,3995.2,3994.5,0.1248]
[1760546297323,0.3509,3995.5,3994.6,2.50332495]
[1760546297604,0.3509,3995.5,3995.2,2.50294954]
[1760546297605,0.2261,3995.5,3995.2,2.50294954]
[1760546297896,0.4455,3995.4,3995.2,2.50299573]
[1760546298200,0.4455,3995.3,3995.2,2.50299573]
[1760546298495,0.4455,3995.3,3994.5,2.573]
[1760546298725,0.336,3995.2,3993.7,1.728]
[1760546298924,0.336,3995.2,3994.3,2.50351587]
[1760546299103,0.336,3995.2,3994.2,1.728]
[1760546299794,0.336,3995.2,3994.1,2.72207161]
[1760546299795,0.336,3995.2,3994.9,2.50317544]
[1760546299991,2.72891977,3995.5,3994.8,2.50324558]
[1760546300219,2.72891977,3995.5,3994.0,1.728]
[1760546300220,0.336,3995.1,3994.2,0.2184]
[1760546300527,0.2261,3995.5,3995.3,2.5029263]
[1760546300728,0.2261,3995.5,3994.4,1.728]
[1760546300729,0.336,3995.4,3994.4,1.728]
[1760546300929,0.336,3995.4,3994.2,0.6683]
[1760546300930,0.336,3995.4,3994.2,0.2184]
[1760546301229,0.336,3995.4,3995.2,2.50295412]
[1760546301423,0.336,3995.3,3995.2,2.50295412]
[1760546302533,0.336,3995.3,3993.5,0.2184]
[1760546302736,0.336,3995.3,3993.0,0.4499]
[1760546303025,2.50329714,3994.8,3993.6,0.002]
[1760546303191,2.50329714,3994.8,3994.1,2.50363915]
[1760546303398,0.2261,3994.2,3994.1,2.50363915]